fUST/lending_fUST_20240812
["ID","MTS","AMOUNT","RATE_DAILY","PERIOD"]
[334673829,1723460834221,-253.36474018,0.00016338,2]
[334673830,1723460834243,-300.0,0.00016437,2]
[334673831,1723460834265,-300.0,0.00016437,2]
[334673832,1723460834287,-153.0,0.00016438,2]
[334673833,1723460834308,-153.0,0.00016438,2]
[334673834,1723460834332,-153.0,0.00016438,2]
[334673835,1723460834353,-153.0,0.00016438,2]
[334673836,1723460834375,-153.0,0.00016438,2]
[334673837,1723460834397,-153.0,0.00016438,2]
[334673838,1723460834419,-153.0,0.00016438,2]
[334673839,1723460834447,-153.0,0.00016438,2]
[334673840,1723460834467,-153.0,0.00016438,2]
[334673841,1723460834488,-309.48934258,0.00017555,2]
[334673842,1723460834510,-500.0,0.0001772,2]
[334673843,1723460834532,-500.0,0.0001772,2]
[334673844,1723460834555,-500.0,0.0001772,2]
[334673845,1723460834580,-313.29643627,0.0001772,2]
[334673846,1723460834601,-4413.77249772,0.00017721,2]
[334673847,1723460839115,-397.39724979,0.00017721,2]
[334673848,1723460952116,-300.0,0.00016437,2]
[334673849,1723460952142,-300.0,0.00016437,2]
[334673850,1723460952169,-153.0,0.00016438,2]
[334673851,1723460952199,-153.0,0.00016438,2]
[334673852,1723460952226,-153.0,0.00016438,2]
[334673853,1723460952252,-153.0,0.00016438,2]
[334673854,1723460952278,-153.0,0.00016438,2]
[334673855,1723460952305,-153.0,0.00016438,2]
[334673856,1723460952332,-153.0,0.00016438,2]
[334673857,1723460952357,-153.0,0.00016438,2]
[334673858,1723460952379,-153.0,0.00016438,2]
[334673859,1723460952401,-153.0,0.00016438,2]
[334673860,1723460952426,-153.0,0.00016438,2]
[334673861,1723460952450,-153.0,0.00016438,2]
[334673862,1723460952471,-153.0,0.00016438,2]
[334673863,1723460952736,-153.0,0.00016438,2]
[334673864,1723460952757,-153.0,0.00016438,2]
[334673865,1723460952779,-153.0,0.00016438,2]
[334673866,1723460952805,-153.0,0.00016438,2]
[334673867,1723460952827,-153.0,0.00016438,2]
[334673868,1723460952851,-153.0,0.00016438,2]
[334673869,1723460952874,-153.0,0.00016438,2]
[334673870,1723460952896,-609.5915333,0.00016506,2]
[334673871,1723460952917,-381.714129,0.00016661,2]
[334673872,1723460952944,-3000.0,0.00017397,2]
[334673873,1723460952966,-20088.83025249,0.00017721,2]
[334673874,1723460952987,-8501.6692735,0.00017721,2]
[334673875,1723460953008,-296.07545052,0.00017721,2]
[334673876,1723460953029,-3156.5433359,0.00017806,2]
[334673877,1723460953050,-174.4183292,0.00017819,2]
[334673878,1723460953071,-605.01999677,0.000179,2]
[334673879,1723460953093,-250.0,0.00017901,2]
[334673880,1723460953115,-250.0,0.0001795,2]
[334673881,1723460953138,-420.0,0.00017964,2]
[334673882,1723460953160,-250.0,0.00017999,2]
[334673883,1723460953188,-250.0,0.00018048,2]
[334673884,1723460953211,-420.0,0.00018081,2]
[334673885,1723460953233,-250.0,0.00018097,2]
[334673886,1723460953254,-250.0,0.00018146,2]
[334673887,1723460953276,-250.0,0.00018195,2]
[334673888,1723460953299,-250.0,0.00018244,2]
[334673889,1723460953322,-250.0,0.00018294,2]
[334673890,1723460953344,-250.0,0.00018343,2]
[334673891,1723460953366,-250.0,0.00018392,2]
[334673892,1723460953388,-250.0,0.00018441,2]
[334673893,1723460953410,-250.0,0.0001849,2]
[334673894,1723460953435,-250.0,0.00018539,2]
[334673895,1723460953456,-250.0,0.00018588,2]
[334673896,1723460953478,-250.0,0.00018637,2]
[334673897,1723460953501,-250.0,0.00018686,2]
[334673898,1723460970155,-250.0,0.00018735,2]
[334673899,1723460977814,189.82749556,0.00017721,2]
[334673900,1723460984453,913.41210079,0.00018686,2]
[334673901,1723460990343,153.0,0.00016438,2]
[334673902,1723460990589,149.22540365,0.00016438,2]
[334673903,1723460990611,3.77459635,0.00016438,2]
[334673904,1723460995127,153.0,0.00016438,2]
[334673905,1723460995368,153.0,0.00016438,2]
[334673906,1723460995630,153.0,0.00016438,2]
[334673907,1723460995839,153.0,0.00016438,2]
[334673908,1723460996050,153.0,0.00016438,2]
[334673909,1723460996628,153.0,0.00016438,2]
[334673912,1723461011128,184.18341077,9.9e-05,2]
[334673913,1723461018840,360.23630038,0.00018701,2]
[334673914,1723461018864,305.58748263,0.00018701,2]
[334673957,1723461033165,-16641.42762024,0.00018701,2]
[334674109,1723461038294,-201.47738181,0.000187,2]
[334674111,1723461038304,-384.29734898,0.00018701,2]
[334674124,1723461038420,-1371.40881746,0.00018701,2]
[334674276,1723461040567,-899.4771621,0.00018686,2]
[334674277,1723461040577,-23035.64623996,0.00018701,2]
[334674311,1723461043059,-284.52444887,0.00018701,2]
[334674312,1723461043069,-1364.76856629,0.00018773,2]
[334674313,1723461043079,-3213.81293709,0.00018773,2]
[334674314,1723461043089,-250.0,0.00018784,2]
[334674315,1723461043099,-834.02375468,0.00018786,2]
[334674316,1723461043109,-300.0,0.00018824,2]
[334674317,1723461043118,-300.0,0.00018824,2]
[334674318,1723461043128,-1612.28857669,0.00018825,2]
[334674319,1723461043137,-250.0,0.00018834,2]
[334674320,1723461043147,-302.444543,0.00018904,2]
[334674321,1723461043157,-585.75458254,0.0001891,2]
[334674322,1723461043166,-154.76012181,0.00018945,2]
[334674327,1723461043338,-154.76012181,0.00018945,2]
[334674328,1723461043348,-180.63105164,0.00018989,2]
[334674329,1723461043359,-5240.8431686,0.00018999,2]
[334674330,1723461043368,-2852.25054596,0.00018999,2]
[334674331,1723461043378,-250.0,0.00019041,2]
[334674332,1723461043387,-1996.22862112,0.00019077,2]
[334674333,1723461043397,-500.0,0.00019101,2]
[334674334,1723461043406,-500.0,0.00019101,2]
[334674335,1723461043415,-480.83098551,0.00019101,2]
[334674336,1723461043425,-166.68703893,0.00019102,2]
[334674337,1723461043579,153.0,0.00016438,2]
[334674348,1723461047842,153.0,0.00016438,2]
[334674349,1723461048215,153.0,0.00016438,2]
[334674350,1723461048458,153.0,0.00016438,2]
[334674351,1723461048693,153.0,0.00016438,2]
[334674353,1723461064347,156.49338422,0.00016337,7]
[334674356,1723461094972,165.909219,0.00014247,2]
[334674358,1723461102738,380.61155709,0.00016337,2]
[334674359,1723461102760,1097.12808586,0.00016337,2]
[334674360,1723461102781,410.56288264,0.00016337,2]
[334674362,1723461135458,165.92999923,0.00016337,2]
[334674367,1723461688805,217.340499,0.00014247,2]
[334674369,1723461771074,210.68435147,0.00014247,2]
[334674371,1723461804656,324.60775045,0.00014247,2]
[334674372,1723461814286,166.06905425,0.00014247,2]
[334674374,1723461862076,175.96846691,0.00014247,2]
[334674375,1723461885962,264.1022763,0.00014247,2]
[334674376,1723461885990,465.2977237,0.00014247,2]
[334674381,1723461935557,190.857064,0.0001486,2]
[334674382,1723461994296,273.37336231,9.9e-05,2]
[334674383,1723462006838,150.0,0.000161,4]
[334674384,1723462010146,273.37336231,9.9e-05,2]
[334674385,1723462025601,273.37336231,9.9e-05,2]
[334674386,1723462029758,4435.3,0.00027,120]
[334674387,1723462030106,-289.50158891,0.0001533,2]
[334674388,1723462032112,-324.31190829,0.0001533,2]
[334674389,1723462032142,-250.0,0.00015437,2]
[334674390,1723462032166,-250.0,0.00015479,2]
[334674391,1723462032194,-50.80183749,0.00015521,2]
[334674393,1723462041637,273.37336231,9.9e-05,2]
[334674394,1723462054406,4712.37284123,9.9e-05,2]
[334674395,1723462056944,273.37336231,9.9e-05,2]
[334674396,1723462057960,596.12560349,0.00015,2]
[334674397,1723462058533,199.21576407,0.00012,2]
[334674398,1723462066466,154.77557542,0.00015,2]
[334674399,1723462072074,912.60929894,0.00015,2]
[334674400,1723462073670,273.37336231,9.9e-05,2]
[334674401,1723462073864,14250.1835598,0.00012,2]
[334674402,1723462088977,273.37336231,9.9e-05,2]
[334674403,1723462108312,482.1,0.00010959,2]
[334674404,1723462109700,47548.1175496,0.00015097,2]
[334674405,1723462125409,155.0,0.00018,30]
[334674406,1723462126813,6015.498873,0.00014952,2]
[334674410,1723462152124,-1198.9560017,0.00015107,2]
[334674411,1723462152148,-199.19816251,0.00015521,2]
[334674412,1723462152171,-250.0,0.00015564,2]
[334674413,1723462152193,-250.0,0.00015606,2]
[334674414,1723462152219,-250.0,0.00015648,2]
[334674415,1723462152241,-250.0,0.00015691,2]
[334674416,1723462152263,-250.0,0.00015733,2]
[334674417,1723462152284,-250.0,0.00015775,2]
[334674418,1723462152308,-250.0,0.00015817,2]
[334674419,1723462152330,-250.0,0.0001586,2]
[334674420,1723462152352,-250.0,0.00015902,2]
[334674421,1723462152375,-2973.87964599,0.00015944,2]
[334674422,1723462152397,-250.0,0.00015944,2]
[334674423,1723462152420,-250.0,0.00015987,2]
[334674424,1723462152442,-250.0,0.00016029,2]
[334674425,1723462152470,-300.0,0.00016037,2]
[334674426,1723462152492,-300.0,0.00016037,2]
[334674427,1723462152513,-7008.86868586,0.00016038,2]
[334674428,1723462152535,-250.0,0.00016071,2]
[334674429,1723462152558,-250.0,0.00016114,2]
[334674430,1723462152580,-250.0,0.00016156,2]
[334674431,1723462152601,-951.94046237,0.00016159,2]
[334674432,1723462152623,-1702.25959703,0.00016159,2]
[334674433,1723462152645,-250.0,0.00016198,2]
[334674434,1723462152667,-250.0,0.00016241,2]
[334674435,1723462152688,-430.70376599,0.00016282,2]
[334674436,1723462152715,-500.0,0.00016282,2]
[334674437,1723462152738,-500.0,0.00016282,2]
[334674438,1723462152759,-237.15276904,0.00016282,2]
[334674439,1723462152781,-500.0,0.00016282,2]
[334674440,1723462152804,-438.42729377,0.00016282,2]
[334674441,1723462152827,-500.0,0.00016282,2]
[334674442,1723462153041,-500.0,0.00016282,2]
[334674443,1723462153064,-500.0,0.00016282,2]
[334674444,1723462153087,-500.0,0.00016282,2]
[334674445,1723462153110,-500.0,0.00016282,2]
[334674446,1723462153132,-367.25515042,0.00016282,2]
[334674447,1723462153155,-500.0,0.00016282,2]
[334674448,1723462153178,-500.0,0.00016282,2]
[334674449,1723462153200,-500.0,0.00016282,2]
[334674450,1723462153228,-500.0,0.00016282,2]
[334674451,1723462153251,-500.0,0.00016282,2]
[334674452,1723462153275,-500.0,0.00016282,2]
[334674453,1723462153298,-500.0,0.00016282,2]
[334674454,1723462153321,-500.0,0.00016282,2]
[334674455,1723462153344,-500.0,0.00016282,2]
[334674456,1723462153366,-500.0,0.00016282,2]
[334674457,1723462153389,-500.0,0.00016282,2]
[334674458,1723462153410,-500.0,0.00016282,2]
[334674459,1723462153434,-500.0,0.00016282,2]
[334674460,1723462153456,-500.0,0.00016282,2]
[334674461,1723462153478,-500.0,0.00016282,2]
[334674462,1723462153501,-500.0,0.00016282,2]
[334674463,1723462153523,-500.0,0.00016282,2]
[334674464,1723462153544,-998.97065318,0.00016282,2]
[334674465,1723462153567,-24900.0,0.00016284,2]
[334674466,1723462153589,-153.0,0.00016438,2]
[334674467,1723462153611,-153.0,0.00016438,2]
[334674468,1723462153633,-153.0,0.00016438,2]
[334674469,1723462153656,-153.0,0.00016438,2]
[334674470,1723462153678,-153.0,0.00016438,2]
[334674471,1723462153700,-153.0,0.00016438,2]
[334674472,1723462153724,-153.0,0.00016438,2]
[334674473,1723462153746,-153.0,0.00016438,2]
[334674474,1723462153769,-153.0,0.00016438,2]
[334674475,1723462153790,-153.0,0.00016438,2]
[334674476,1723462153812,-153.0,0.00016438,2]
[334674477,1723462153834,-153.0,0.00016438,2]
[334674478,1723462153856,-153.0,0.00016438,2]
[334674479,1723462153878,-153.0,0.00016438,2]
[334674480,1723462153900,-153.0,0.00016438,2]
[334674481,1723462153922,-153.0,0.00016438,2]
[334674482,1723462153944,-153.0,0.00016438,2]
[334674483,1723462153972,-153.0,0.00016438,2]
[334674484,1723462153994,-153.0,0.00016438,2]
[334674485,1723462154015,-11559.28647785,0.00017,15]
[334674486,1723462154039,-420.0,0.00017533,2]
[334674487,1723462154061,-210.04889723,0.00017555,2]
[334674488,1723462154085,-500.0,0.00017593,2]
[334674489,1723462154108,-536.58168986,0.00017593,2]
[334674490,1723462154130,-420.0,0.00017641,2]
[334674491,1723462154153,-1665.42818969,0.00017882,7]
[334674492,1723462154173,-9652.40516915,0.00017882,2]
[334674493,1723462154194,-245.09758384,0.00018,2]
[334674494,1723462154222,-2686.17644967,0.00018122,2]
[334674495,1723462154245,-154.89837885,0.00018182,2]
[334674496,1723462154269,-21675.7756475,0.00018546,2]
[334674497,1723462154290,-5325.39409939,0.00018556,2]
[334674498,1723462154521,-659.94157125,0.00018556,2]
[334674499,1723462154543,-1020.71977583,0.00018557,2]
[334674500,1723462154566,-1020.71977583,0.00018557,2]
[334674501,1723462154586,-277.46411292,0.00018629,2]
[334674502,1723462154608,-932.99527997,0.00018657,2]
[334674503,1723462154629,-5240.8431686,0.00018667,2]
[334674504,1723462154650,-472.28479668,0.00018667,2]
[334674505,1723462154670,-534.3800288,0.00018667,2]
[334674506,1723462154691,-460.27290627,0.00018667,4]
[334674507,1723462154716,-203.88272635,0.00018673,2]
[334674508,1723462154736,-817.03180288,0.00018679,3]
[334674509,1723462154757,-20780.14466348,0.00018696,2]
[334674510,1723462154777,-155.01488509,0.00018696,2]
[334674511,1723462154799,-208.45850869,0.00018696,2]
[334674512,1723462154820,-166.23720356,0.00018696,2]
[334674513,1723462154840,-3090.72018399,0.00018701,2]
[334674514,1723462154860,-157.43077362,0.00018701,2]
[334674515,1723462154881,-162.42979822,0.00018701,2]
[334674516,1723462154901,-309.11885378,0.00018701,2]
[334674517,1723462154923,-154.79102285,0.00018701,2]
[334674518,1723462154944,-250.24281476,0.0001872,2]
[334674519,1723462154970,-159.38116829,0.0001872,2]
[334674520,1723462155083,168.771852,0.00014247,2]
[334674521,1723462155183,309.52024362,0.00018679,2]
[334674522,1723462157526,1464.74531734,0.00015954,2]
[334674523,1723462157549,5544.12336852,0.00015954,2]
[334674524,1723462189058,153.0,0.00016438,2]
[334674525,1723462189320,72.0231114,0.00016438,2]
[334674526,1723462189343,80.9768886,0.00016438,2]
[334674527,1723462189487,183.373011,0.00017898,2]
[334674528,1723462189721,183.373011,0.00017943,2]
[334674529,1723462189917,183.373011,0.00017987,2]
[334674530,1723462193242,153.0,0.00016438,2]
[334674531,1723462193554,153.0,0.00016438,2]
[334674532,1723462193801,153.0,0.00016438,2]
[334674533,1723462194049,153.0,0.00016438,2]
[334674534,1723462195120,2164.74871652,0.00018701,2]
[334674535,1723462212143,601.3570708,0.0001872,2]
[334674536,1723462213865,2280.6099092,0.00018701,3]
[334674559,1723462232222,-1384.31526916,0.00018825,2]
[334674561,1723462232233,-8036.37938117,0.00018825,2]
[334674600,1723462235816,255.97228565,0.00018673,2]
[334674625,1723462239155,-801.72318936,0.00018825,2]
[334674626,1723462239165,-300.0,0.00018844,2]
[334674627,1723462239176,-2865.01698861,0.00018845,2]
[334674628,1723462239186,-4354.20130479,0.00018876,2]
[334674629,1723462239195,-5259.25953753,0.00018889,2]
[334674630,1723462239206,-298.274213,0.00018904,2]
[334674631,1723462239215,-500.0,0.0001892,2]
[334674632,1723462239225,-500.0,0.0001892,2]
[334674633,1723462239235,-374.13946116,0.0001892,2]
[334674634,1723462239247,-35044.64616853,0.00018921,2]
[334674635,1723462239258,-850.24651816,0.00018921,2]
[334674636,1723462239267,-241.04577133,0.00018969,2]
[334674637,1723462239277,-404.08727484,0.00018976,2]
[334674638,1723462239288,-500.0,0.00018978,2]
[334674639,1723462239297,-225.6071829,0.00018978,2]
[334674640,1723462239310,-6843.40514778,0.00018979,2]
[334674641,1723462239462,-2295.71910636,0.00018979,2]
[334674675,1723462243590,153.0,0.00016438,2]
[334674720,1723462247691,153.0,0.00016438,2]
[334674723,1723462277648,24900.0,0.00017979,2]
[334674732,1723462325579,913.41210079,0.00017979,2]
[334674733,1723462326688,5891.70371345,0.00017979,2]
[334674734,1723462329991,360.59,0.00018,2]
[334674735,1723462338920,273.37336231,9.9e-05,2]
[334674736,1723462339553,11543.27267345,0.00027,120]
[334674738,1723462354637,239.4790441,9.9e-05,2]
[334674739,1723462363390,273.37336231,9.9e-05,2]
[334674742,1723462371532,273.37336231,9.9e-05,2]
[334674743,1723462379397,273.37336231,9.9e-05,2]
[334674748,1723462387513,273.37336231,9.9e-05,2]
[334674749,1723462395416,273.37336231,9.9e-05,2]
[334674750,1723462403607,273.37336231,9.9e-05,2]
[334674751,1723462412122,273.37336231,9.9e-05,2]
[334674752,1723462420355,273.37336231,9.9e-05,2]
[334674755,1723462429398,273.37336231,9.9e-05,2]
[334674756,1723462437422,273.37336231,9.9e-05,2]
[334674757,1723462445966,273.37336231,9.9e-05,2]
[334674758,1723462454277,273.37336231,9.9e-05,2]
[334674759,1723462462116,273.37336231,9.9e-05,2]
[334674760,1723462470292,273.37336231,9.9e-05,2]
[334674761,1723462478525,273.37336231,9.9e-05,2]
[334674762,1723462479847,510.00019594,9.9e-05,2]
[334674763,1723462490876,273.37336231,9.9e-05,2]
[334674764,1723462498873,273.37336231,9.9e-05,2]
[334674765,1723462507247,273.37336231,9.9e-05,2]
[334674766,1723462515176,273.37336231,9.9e-05,2]
[334674767,1723462523387,273.37336231,9.9e-05,2]
[334674768,1723462538971,190.34444545,9.9e-05,2]
[334674770,1723462599914,269.65614473,0.00012,7]
[334674771,1723462645525,217.340499,0.00014247,2]
[334674772,1723462659103,834.02375468,0.00015,2]
[334674773,1723462696736,179.02533557,0.00014545,2]
[334674774,1723462742615,598.96931795,0.00015,2]
[334674779,1723463031456,1669.01055043,0.00015,2]
[334674780,1723463033047,781.90483555,0.00015,2]
[334674781,1723463148232,3487.76861012,0.00015,2]
[334674782,1723463162025,168.07069,0.00014247,2]
[334674783,1723463242149,-334.657447,0.00015244,2]
[334674784,1723463242173,-1303.3627491,0.0001594,2]
[334674785,1723463242196,-300.0,0.00016094,2]
[334674786,1723463242218,-300.0,0.00016094,2]
[334674787,1723463242239,-37770.57087776,0.00016095,2]
[334674788,1723463246029,834.21452004,0.00014247,2]
[334674789,1723463250089,-3771.88580921,0.00016095,2]
[334674797,1723463347535,2263.1188306,0.00015039,2]
[334674799,1723463358173,-42383.12825852,0.00015951,2]
[334674800,1723463358195,-300.0,0.00015952,2]
[334674801,1723463358220,-300.0,0.00015952,2]
[334674802,1723463358241,-500.0,0.00015952,2]
[334674803,1723463358263,-500.0,0.00015952,2]
[334674804,1723463358284,-472.22198236,0.00015952,2]
[334674805,1723463358307,-507.92502803,0.00016013,2]
[334674806,1723463358328,-76415.53748422,0.00016014,2]
[334674807,1723463358356,-3809.9261417,0.00016015,2]
[334674808,1723463358380,-834.21452004,0.00016095,2]
[334674809,1723463358403,-250.0,0.00016115,2]
[334674810,1723463358425,-667.8148139,0.00016125,2]
[334674811,1723463358447,-250.0,0.00016159,2]
[334674812,1723463358468,-499.40192568,0.00016159,2]
[334674813,1723463358490,-250.0,0.00016203,2]
[334674814,1723463358514,-250.0,0.00016247,2]
[334674815,1723463358537,-250.0,0.00016292,2]
[334674816,1723463358561,-250.0,0.00016336,2]
[334674817,1723463358582,-103539.30955469,0.00016347,2]
[334674820,1723463373172,-4876.1212466,0.00016094,2]
[334674821,1723463391121,10000.0,0.00025,60]
[334674824,1723463411453,5737.33,0.00025,60]
[334674842,1723463432520,-24900.0,0.00015248,2]
[334674843,1723463432530,-325.01762135,0.00015952,2]
[334674844,1723463432540,-500.0,0.00015952,2]
[334674845,1723463432549,-500.0,0.00015952,2]
[334674846,1723463432559,-206.9188897,0.00015952,2]
[334674847,1723463432576,-500.0,0.00015952,2]
[334674848,1723463432589,-500.0,0.00015952,2]
[334674849,1723463432599,-500.0,0.00015952,2]
[334674850,1723463432608,-500.0,0.00015952,2]
[334674851,1723463432618,-127680.45511281,0.00015953,2]
[334674852,1723463432628,-300.0,0.00016012,2]
[334674853,1723463432638,-300.0,0.00016012,2]
[334674854,1723463432650,-1558.67643441,0.00016347,2]
[334674855,1723463432659,-250.0,0.0001638,2]
[334674856,1723463432669,-250.0,0.00016424,2]
[334674857,1723463432678,-500.0,0.00016438,2]
[334674858,1723463432687,-412.47176561,0.00016438,2]
[334674859,1723463432697,-153.0,0.00016438,2]
[334674860,1723463432706,-153.0,0.00016438,2]
[334674861,1723463432716,-153.0,0.00016438,2]
[334674862,1723463432725,-153.0,0.00016438,2]
[334674863,1723463432734,-153.0,0.00016438,2]
[334674864,1723463432743,-153.0,0.00016438,2]
[334674865,1723463432753,-153.0,0.00016438,2]
[334674866,1723463432763,-153.0,0.00016438,2]
[334674867,1723463432772,-153.0,0.00016438,2]
[334674868,1723463432782,-153.0,0.00016438,2]
[334674869,1723463432791,-153.0,0.00016438,2]
[334674870,1723463432800,-153.0,0.00016438,2]
[334674871,1723463432813,-153.0,0.00016438,2]
[334674872,1723463432823,-153.0,0.00016438,2]
[334674873,1723463432833,-153.0,0.00016438,2]
[334674874,1723463432843,-250.0,0.00016468,2]
[334674875,1723463432852,-250.0,0.00016513,2]
[334674876,1723463432863,-250.0,0.00016557,2]
[334674877,1723463432872,-250.0,0.00016601,2]
[334674878,1723463432882,-4207.40763,0.00016633,2]
[334674879,1723463432893,-250.0,0.00016645,2]
[334674880,1723463432906,-32172.399054,0.00016683,2]
[334674881,1723463432917,-250.0,0.00016689,2]
[334674882,1723463432927,-250.0,0.00016734,2]
[334674883,1723463432936,-250.0,0.00016778,2]
[334674884,1723463432949,-250.0,0.00016822,2]
[334674885,1723463432960,-250.0,0.00016866,2]
[334674886,1723463432969,-250.0,0.0001691,2]
[334674887,1723463432979,-250.0,0.00016954,2]
[334674888,1723463432989,-195.58847362,0.00017019,2]
[334674889,1723463432998,-156.49338422,0.00017201,7]
[334674890,1723463433008,-33088.88923739,0.00017258,2]
[334674891,1723463433018,-128689.596216,0.00017259,2]
[334674892,1723463433028,-4207.40762999,0.00017397,2]
[334674893,1723463433037,-155.07873182,0.00017403,2]
[334674894,1723463433047,-500.0,0.00017451,2]
[334674895,1723463433057,-420.0,0.00017506,2]
[334674896,1723463433066,-420.0,0.00017613,2]
[334674897,1723463433076,-5251.6039808,0.00018,2]
[334674898,1723463433086,-4207.40762999,0.00018162,2]
[334674899,1723463433095,-1364.76856629,0.00018346,2]
[334674900,1723463433104,-569.13160243,0.00018346,2]
[334674901,1723463433114,-9652.40516915,0.00018356,2]
[334674902,1723463433124,-2630.01967511,0.00018356,2]
[334674903,1723463433134,-500.0,0.0001837,2]
[334674904,1723463433327,-521.37928999,0.00018402,2]
[334674905,1723463433337,-32172.399054,0.00018619,2]
[334674906,1723463433346,-202.67535457,0.00018629,2]
[334674907,1723463433360,-20780.14466348,0.00018667,2]
[334674908,1723463433370,-277.46411292,0.00018696,2]
[334674909,1723463433380,-245.151344,0.00018696,2]
[334674910,1723463433389,-245.151344,0.00018696,2]
[334674911,1723463433401,-1703.818599,0.00018696,2]
[334674912,1723463433410,-1703.818599,0.00018696,2]
[334674913,1723463433420,-191.84164045,0.00018725,2]
[334674914,1723463433430,-472.28479668,0.00018773,2]
[334674915,1723463433439,-204.59433028,0.00018786,4]
[334674916,1723463433449,-208.44304463,0.00018786,2]
[334674917,1723463433459,-817.03180288,0.00018786,3]
[334674918,1723463433470,-439.47520977,0.00018845,2]
[334674919,1723463433480,-32172.399054,0.00018899,2]
[334674920,1723463433489,-308.360502,0.00018904,2]
[334674921,1723463433499,-245.151344,0.00018909,2]
[334674922,1723463433510,-245.151344,0.00018909,2]
[334674923,1723463433519,-1703.818599,0.00018909,2]
[334674924,1723463433529,-1703.818599,0.00018909,2]
[334674925,1723463433539,-4207.40762999,0.00018926,2]
[334674926,1723463433548,-35044.64616853,0.00018979,2]
[334674927,1723463433558,-301.29579535,0.00018989,2]
[334674928,1723463433567,-521.33186388,0.00018999,2]
[334674929,1723463433577,-4779.52044847,0.00019,2]
[334674930,1723463433587,-151.0,0.00019,2]
[334674931,1723463433597,-250.0,0.00019041,2]
[334674932,1723463433606,-481.0,0.0001914,2]
[334674933,1723463433616,-1993.38782086,0.00019155,2]
[334674934,1723463433626,-32172.399054,0.00019157,2]
[334674935,1723463433636,-151.0,0.00019167,2]
[334674936,1723463433647,-245.151344,0.00019167,2]
[334674937,1723463433657,-245.151344,0.00019167,2]
[334674938,1723463433666,-1703.818599,0.00019167,2]
[334674939,1723463433676,-1703.818599,0.00019167,2]
[334674940,1723463433686,-2279.967743,0.00019167,3]
[334674941,1723463433696,-151.0,0.00019177,2]
[334674942,1723463433705,-151.0,0.00019177,2]
[334674943,1723463433715,-276.877716,0.00019177,2]
[334674944,1723463433724,-276.877716,0.00019177,2]
[334674945,1723463433735,-161.960897,0.00019178,2]
[334674946,1723463433745,-151.0,0.0001922,2]
[334674947,1723463433756,-181.915356,0.0001922,2]
[334674948,1723463433766,-181.915356,0.0001922,2]
[334674949,1723463433776,-151.0,0.0001922,2]
[334674950,1723463433786,-151.0,0.0001922,2]
[334674951,1723463433796,-151.0,0.0001922,2]
[334674952,1723463433807,-421.62538805,0.00019256,7]
[334674953,1723463433820,-500.0,0.00019337,2]
[334674954,1723463433829,-587.0,0.00019375,2]
[334674955,1723463433839,-835.60835493,0.00019451,2]
[334674956,1723463433849,-1000.0,0.00019452,2]
[334674957,1723463433859,-513.69735379,0.00019477,2]
[334674958,1723463433869,-241.45552535,0.00019477,2]
[334674959,1723463433880,-160.30213643,0.00019477,2]
[334674960,1723463433889,-14251.4449406,0.00019477,2]
[334674961,1723463433901,-154.76012181,0.00019477,2]
[334674962,1723463433911,-36.55329562,0.00019477,2]
[334675028,1723463439146,-500.0,0.00015952,2]
[334675029,1723463439155,-500.0,0.00015952,2]
[334675030,1723463439164,-500.0,0.00015952,2]
[334675031,1723463439174,-500.0,0.00015952,2]
[334675032,1723463439184,-500.0,0.00015952,2]
[334675033,1723463439193,-500.0,0.00015952,2]
[334675034,1723463439203,-899.4771621,0.00016094,2]